{"text_format":"1","workbook":"xlsx","n_sheets":1,"sheets":["Bid Form Template"],"not_rendered":{"charts":0,"images":0,"macros":0,"external_links":1,"defined_names":22,"comments":0,"pivot_tables":0},"unopened":[],"bounds":{"document_bytes":16777216,"sheet_cells":100000,"rows_first":2000,"rows_last":500,"rows_between":2000,"halvings":0,"cell_chars":16384,"cell_head_chars":4096},"cells_cut":0,"cells_raw":0,"read":"whole","date_system":"1900"}

{"sheet":"Bid Form Template","index":0,"n_rows":222,"n_cols":7,"rows_kept":222,"cut":false,"hidden":false,"merged":[[3,1,3,6],[35,1,35,5],[263,1,263,6],[264,1,264,6],[259,1,259,6],[221,1,221,5],[257,1,257,6],[258,1,258,6],[260,1,260,6],[261,1,261,6],[262,1,262,6],[159,1,159,6],[170,1,170,6],[179,1,179,6],[66,1,66,6],[217,1,217,5],[211,1,211,5],[212,1,212,6],[215,1,215,5],[206,1,206,6],[208,1,208,6],[36,1,36,6],[52,1,52,5],[53,1,53,6],[83,1,83,6],[116,1,116,5],[65,1,65,5],[91,1,91,5],[100,1,100,5],[110,1,110,5],[77,1,77,5],[101,1,101,6],[111,1,111,6],[141,1,141,5],[220,1,220,5],[218,1,218,5],[219,1,219,5],[1,1,1,6],[81,1,81,6],[157,1,157,6],[78,1,78,5],[154,1,154,5],[169,1,169,5],[178,1,178,5],[204,1,204,5],[153,1,153,5],[92,1,92,6],[142,1,142,6],[117,1,117,6]]}
[]
[null,"BID FORM PAGE 1: KANSAS EXPRESSWAY EXTENSTION"]
[null,"Pay Item Number","Description","Quantity","Unit","Unit Price","Estimated Cost"]
[null,"ROADWAY"]
[null,2013000,"CLEARING AND GRUBBING",36,"ACRE",null,{"$f":"D5*F5","v":0}]
[null,2022010,"REMOVAL OF IMPROVEMENTS",1,"LS",null,0]
[null,2031000,"CLASS A EXCAVATION",193257,"CUYD",null,0]
[null,2032000,"CLASS C EXCAVATION",19329,"CUYD",null,0]
[null,2039900,"EMBANKMENT IN PLACE",29415,"CUYD",null,0]
[null,2036000,"COMPACTING EMBANKMENT",162205,"CUYD",null,0]
[null,2037075,"COMPACTING IN CUT",96.3,"STA",null,0]
[null,3040504,"TYPE 5 AGGREGATE FOR BASE (4 IN. THICK)",10694,"SQYD",null,0]
[null,4011209,"BITUMINOUS PAVEMENT MIXTURE PG64-22, (BP-1)",177.8,"TONS",null,0]
[null,4013000,"BITUMINOUS PAVEMENT MIXTURE PG64-22 (BASE)",{"$f":"355.5","v":355.5},"TONS",null,0]
[null,4071005,"TACK COAT",{"$f":"81","v":81},"GAL",null,0]
[null,6061060,"MGS GUARDRAIL",522,"LF",null,0]
[null,6061068,"MGS BRIDGE APPROACH TRANSITION SECTION (EXTENDED CURB)",2,"EA",null,0]
[null,6061080,"MGS END ANCHOR",3,"EA",null,0]
[null,6063014,"TYPE A CRASHWORTHY END TERMINAL (MASH)",2,"EA",null,0]
[null,6079903,"(72 IN.) PRIVACY FENCE",723,"LF",null,0]
[null,6081000,"CONCRETE MEDIAN",135,"SQYD",null,0]
[null,6081010,"CONCRETE CURB RAMP",{"$f":"93+71.1","v":164.1},"SQYD",null,0]
[null,6081012,"TRUNCATED DOMES",210,"SQFT",null,0]
[null,6083006,"6 IN. CONCRETE MEDIAN STRIP",138.9,"SQYD",null,0]
[null,6086004,"CONCRETE SIDEWALK, 4 IN.",9684.7000000000007,"SQYD",null,0]
[null,6096041,"PLACING TYPE 1 ROCK DITCH LINER",47,"CUYD",null,0]
[null,6096043,"PLACING TYPE 3 ROCK DITCH LINER",108,"CUYD",null,0]
[null,6096050,"BEDDING MATERIAL FOR ROCK DITCH LINER",39,"CUYD",null,0]
[null,6099903,"CURB AND GUTTER (TYPE ST-2) - SPRINGFIELD",21351,"LF",null,0]
[null,6099907,"PLACING GRAVEL FILTER DAM",228,"CUYD",null,0]
[null,6181000,"MOBILIZATION",1,"LS",null,0]
[null,6189902,"ADDITIONAL MOBILIZATION FOR SEEDING",10,"EA",null,0]
[null,"6240103A","PERMANENT EROSION CONTROL GEOTEXTILE",{"$f":"388+342+1513","v":2243},"SQYD",null,0]
[null,6274000,"CONTRACTOR FURNISHED SURVEY AND STAKING",1,"LS",null,0]
[null,"8051000A","SEEDING - COOL SEASON MIXTURES",24.1,"ACRE",null,0]
[null,"SUBTOTAL ROADWAY:",null,null,null,null,{"$f":"SUM(G5:G35)","v":0}]
[null,"STORM SEWER"]
[null,2063000,"CLASS 3 EXCAVATION",2731,"CUYD",null,{"$f":"D38*F38","v":0}]
[null,6042020,"ADJUSTING BASIN OR INLET",2,"EA",null,0]
[null,6097000,"ROCK LINING",155,"CUYD",null,0]
[null,6149902,"DROP INLET (TYPE SS-6) - SPRINGFIELD",55,"EA",null,0]
[null,7269915,"15 IN. R.C. PIPE CULVERT",2662,"LF",null,0]
[null,7269918,"18 IN. R.C. PIPE CULVERT",625,"LF",null,0]
[null,7269924,"24 IN. R.C. PIPE CULVERT",386,"LF",null,0]
[null,7269930,"30 IN. R.C. PIPE CULVERT",358,"LF",null,0]
[null,7269936,"36 IN. R.C. PIPE CULVERT",171,"LF",null,0]
[null,7319902,"STANDARD JUNCTION BOX - GREENE COUNTY",1,"EA",null,0]
[null,7329915,"15 IN. FLARED END SECTION FOR R.C. PIPE CULVERT",34,"EA",null,0]
[null,7329918,"18 IN. FLARED END SECTION FOR R.C. PIPE CULVERT",2,"EA",null,0]
[null,7329924,"24 IN. FLARED END SECTION FOR R.C. PIPE CULVERT",1,"EA",null,0]
[null,7329930,"30 IN. FLARED END SECTION FOR R.C. PIPE CULVERT",5,"EA",null,0]
[null,7329936,"36 IN. FLARED END SECTION FOR R.C. PIPE CULVERT",2,"EA",null,0]
[null,"SUBTOTAL STORM SEWER:",null,null,null,null,{"$f":"SUM(G38:G52)","v":0}]
[null,"TRAFFIC CONTROL"]
[null,6161005,"CONSTRUCTION SIGNS",2326,"SQFT",null,{"$f":"D55*F55","v":0}]
[null,6161008,"ADVANCED WARNING RAIL SYSTEM",4,"EA",null,0]
[null,6161009,"FLAG ASSEMBLY",4,"EA",null,0]
[null,6161010,"RELOCATED SIGNS",170,"EA",null,0]
[null,6161020,"CHANNELIZER (DRUM-LIKE)",20,"EA",null,0]
[null,6161030,"TYPE III MOVEABLE BARRICADE ",9,"EA",null,0]
[null,6161099,"CHANGEABLE MESSAGE SIGN WITH COMMUNICATION INTERFACE, CONTRACTOR FURNISHED, CONTRACTOR RETAINED",4,"EA",null,0]
[null,"6205301B","TEMPORARY REMOVABLE MARKING TAPE 4 IN., WHITE",1617,"LF",null,0]
[null,"6205303B","TEMPORARY REMOVABLE MARKING TAPE 4 IN., YELLOW",1111,"LF",null,0]
[null,6205442,"PREFORMED SHORT TERM MARKING TAPE STRAIGHT ARROW",4,"EA",null,0]
[null,6207001,"PAVEMENT MARKING REMOVAL",4685,"LF",null,0]
[null,"SUBTOTAL TRAFFIC CONTROL:",null,null,null,null,{"$f":"SUM(G55:G65)","v":0}]
[null,"EROSION CONTROL"]
[null,8061004,"SEDIMENT TRAP ROCK",9,"CUYD",null,{"$f":"D68*F68","v":0}]
[null,8061005,"ROCK DITCH CHECK",6280,"LF",null,0]
[null,"8061007A","CURB INLET CHECK",1050,"EA",null,0]
[null,8061016,"SEDIMENT REMOVAL",509,"CUYD",null,0]
[null,8061017,"TEMPORARY SEEDING AND MULCHING",26.5,"ACRE",null,0]
[null,8061050,"TYPE C BERM",2777,"LF",null,0]
[null,8064140,"TYPE 3B EROSION CONTROL BLANKET",6295,"SQYD",null,0]
[null,8069901,"SILT SOCK (8\")",2465,"LF",null,0]
[null,8069902,"SILT SOCK (12\")",6971,"LF",null,0]
[null,8069903,"MULCH BERM",9436,"LF",null,0]
[null,"SUBTOTAL EROSION CONTROL:",null,null,null,null,{"$f":"SUM(G68:G77)","v":0}]
[null,"SUBTOTAL PAGE 1:",null,null,null,null,{"$f":"SUM(G78,G66,G53,G36)","v":0}]
[]
[]
[null,"BID FORM PAGE 2: KANSAS EXPRESSWAY EXTENSTION"]
[null,"Pay Item Number","Description","Quantity","Unit","Unit Price","Estimated Cost"]
[null,"PAVEMENT MARKINGS"]
[null,6200009,"PREFORMED THERMOPLASTIC PAVEMENT MARKING, 6 IN. WHITE",1245,"LF",null,{"$f":"D85*F85","v":0}]
[null,6200015,"PREFORMED THERMOPLASTIC PAVEMENT MARKING, 24 IN. WHITE",531,"LF",null,0]
[null,6200018,"PREFORMED THERMOPLASTIC PAVEMENT MARKING, 24 IN. YELLOW",255,"LF",null,0]
[null,6200021,"PREFORMED THERMOPLASTIC PAVEMENT MARKING, LEFT/RIGHT ARROW ",{"$f":"26+19","v":45},"EA",null,0]
[null,6200042,"PREFORMED THERMOPLASTIC PAVEMENT MARKING, 12 IN WHITE, YIELD LINE TRIANGLES ",26,"EA",null,0]
[null,"6206000C","4 IN. WHITE STANDARD WATERBORNE PAVEMENT MARKING PAINT, TYPE P BEADS ",8456,"LF",null,0]
[null,"6206001C","4 IN. YELLOW STANDARD WATERBORNE PAVEMENT MARKING PAINT, TYPE P BEADS ",19717,"LF",null,0]
[null,"SUBTOTAL PAVEMENT MARKINGS:",null,null,null,null,{"$f":"SUM(G85:G91)","v":0}]
[null,"SIGNS"]
[null,9031010,"CONCRETE FOOTINGS, EMBEDDED",{"$f":"4+0.4","v":4.4000000000000004},"CUYD",null,{"$f":"D94*F94","v":0}]
[null,"9031270A","2 IN. PSST POST - 12 GA.",648,"LF",null,0]
[null,9031271,"POST ANCHOR FOR 2 IN. PSST - 7 GA.",126,"LF",null,0]
[null,9031273,"POST ANCHOR FOR 2 IN. PSST - 12 GA.",42,"LF",null,0]
[null,9031280,"2.5 IN. PSST POST - 12 GA.",48,"LF",null,0]
[null,9031281,"POST ANCHOR FOR 2.5 IN. PSST - 7 GA.",12,"LF",null,0]
[null,"9035004A","SH - FLAT SHEET",436,"SQFT",null,0]
[null,"SUBTOTAL SIGNS:",null,null,null,null,{"$f":"SUM(G94:G100)","v":0}]
[null,"CONSPAN STRUCTURE"]
[null,7259901,"BEBO ARCHES (SUPPLIED AND INSTALLED)",1,"LS",null,{"$f":"D103*F103","v":0}]
[null,2061000,"CLASS 1 EXCAVATION",1790,"CUYD",null,0]
[null,2061003,"CLASS 1 EXCAVATION IN ROCK",624,"CUYD",null,0]
[null,2062000,"CLASS 2 EXCAVATION",402,"CUYD",null,0]
[null,2062003,"CLASS 2 EXCAVATION IN ROCK",2562,"CUYD",null,0]
[null,"6214600A","FLOWABLE BACKFILL",289,"CUYD",null,0]
[null,7034040,"CLASS B-1 CONCRETE (CULVERTS-BRIDGE) ",2092.5,"CUYD",null,0]
[null,7061020,"REINFORCING STEEL (CULVERTS-BRIDGE)",219580,"LB",null,0]
[null,"SUBTOTAL CONSPAN STRUCTURE:",null,null,null,null,{"$f":"SUM(G103:G110)","v":0}]
[null,"MSE WALLS"]
[null,6071050,"CHAIN-LINK FENCE (RETAINING WALLS)",{"$f":"360+415","v":775},"LF",null,{"$f":"D113*F113","v":0}]
[null,7110300,"CONCRETE AND MASONRY PROTECTION SYSTEM",{"$f":"1+1","v":2},"LS",null,0]
[null,7110400,"SACRIFICIAL GRAFFITI PROTECTION SYSTEM",{"$f":"1+1","v":2},"LS",null,0]
[null,7201000,"MECHANICALLY STABILIZED EARTH WALL SYSTEMS",{"$f":"4034+4187","v":8221},"SQFT",null,0]
[null,"SUBTOTAL MSE WALLS:",null,null,null,null,{"$f":"SUM(G113:G116)","v":0}]
[null,"BRIDGE"]
[null,"5031010A","BRIDGE APPROACH SLAB (MAJOR ROAD)",183,"SQYD",null,{"$f":"D119*F119","v":0}]
[null,6071066,"(72 IN.) PEDESTRIAN FENCE (STRUCTURES)",491,"LF",null,0]
[null,6113040,"PLACING TYPE 2 ROCK BLANKET",1009,"CUYD",null,0]
[null,7011104,"DRILLED SHAFTS (3 FT. 0 IN. DIA.)",104.4,"LF",null,0]
[null,7011203,"ROCK SOCKETS (2 FT 6 IN. DIA.)",45,"LF",null,0]
[null,7011300,"VIDEO CAMERA INSPECTION",9,"EA",null,0]
[null,7011400,"FOUNDATION INSPECTION HOLES",135,"LF",null,0]
[null,7011600,"SONIC LOGGING TESTING",9,"EA",null,0]
[null,7021210,"GALVANIZED STRUCTURAL STEEL PILES (10 IN)",180,"LF",null,0]
[null,7026000,"PRE-BORE FOR PILING",158,"LF",null,0]
[null,7027000,"PILE POINT REINFORCEMENT",15,"EA",null,0]
[null,7034003,"CLASS B-1 CONCRETE (SUBSTRUCTURE)",168,"CUYD",null,0]
[null,7034212,"SLAB ON STEEL",2154,"SQYD",null,0]
[null,7039903,"CORRAL RAIL",934,"LF",null,0]
[null,7039903,"CORRAL RAIL TRANSITION",35,"LF",null,0]
[null,7061060,"REINFORCING STEEL (BRIDGES)",33100,"LB",null,0]
[null,7071000,"CONDUIT SYSTEM ON STRUCTURE",1,"LS",null,0]
[null,7110500,"TEMPORARY COATING - CONCRETE BENTS AND PIERS (WEATHERING STEEL)",1,"LS",null,0]
[null,7121113,"FABRICATED STRUCTURAL LOW ALLOY STEEL (I-BEAM) A709, GRADE 50W",661690,"LB",null,0]
[null,7151001,"VERTICAL DRAIN AT END BENTS",2,"EA",null,0]
[null,7161002,"LAMINATED NEOPRENE BEARING PAD",5,"EA",null,0]
[null,7161003,"LAMINATED NEOPRENE BEARING PAD (TAPERED)",5,"EA",null,0]
[null,7162000,"LAMINATED NEOPRENE BEARING PAD ASSEMBLY",15,"EA",null,0]
[null,"SUBTOTAL BRIDGE:",null,null,null,null,{"$f":"SUM(G119:G141)","v":0}]
[null,"GAS & WATER RELOCATIONS"]
[null,6039931,"FURNISH AND INSTALL 2\" PL GAS MAIN",410,"LF",null,{"$f":"D144*F144","v":0}]
[null,6039932,"FURNISH AND INSTALL 4\" PL GAS MAIN",1060,"LF",null,0]
[null,6039933,"FURNISH AND INSTALL 6\" PL GAS MAIN",4900,"LF",null,0]
[null,6039934,"FURNISH AND INSTALL 3/4\" PL GAS SERVICE, ANY METHOD",2,"EA",null,0]
[null,6039935,"FURNISH AND INSTALL 3/4\" PL GAS SERVICE, STREET CROSSING",2,"EA",null,0]
[null,6039901,"FURNISH AND INSTALL 2\" HDPE WATER MAIN",200,"LF",null,0]
[null,6039902,"FURNISH AND INSTALL 8\" C900 WATER MAIN",220,"LF",null,0]
[null,6039903,"FURNISH AND INSTALL 12\" HDPE WATER MAIN",1890,"LF",null,0]
[null,6039904,"FURNISH AND INSTALL 12\" C900 WATER MAIN",2100,"LF",null,0]
[null,6039950,"FURNISH AND INSTALL FIRE HYDRANT",9,"EA",null,0]
[null,"SUBTOTAL GAS & WATER RELOCATIONS:",null,null,null,null,{"$f":"SUM(G144:G153)","v":0}]
[null,"SUBTOTAL PAGE 2:",null,null,null,null,{"$f":"SUM(G92+G101+G111+G117+G142+G154)","v":0}]
[]
[]
[null,"BID FORM PAGE 3: KANSAS EXPRESSWAY EXTENSTION"]
[null,"Pay Item Number","Description","Quantity","Unit","Unit Price","Estimated Cost"]
[null,"ELECTRIC"]
[null,9019901,"FURNISH AND INSTALL 2\" RIGID PVC IN TRENCH STANDARD BACKFILL (PVC-2)",15184,"LF",null,{"$f":"D161*F161","v":0}]
[null,9019902,"FURNISH AND INSTALL 4\" RIGID PVC IN TRENCH STANDARD BACKFILL (PVC-4)",10,"LF",null,0]
[null,9019903,"FURNISH AND INSTALL 4\" GALVANIZED IN TRENCH ROCK BACKFILL (GALV-2)",1223,"LF",null,0]
[null,9019904,"FURNISH AND INSTALL CONCRETE STREETLIGHT FOUNDATION (CF24-140)",55,"EA",null,0]
[null,9019905,"FURNISH AND INSTALL CONCRETE CONTROLLER FOUNDATION (WWC-U)",1,"EA",null,0]
[null,9019906,"INSTALL SINGLE PHASE PLASTIC TRANSFORMER PAD (PD-TRP)",1,"EA",null,0]
[null,9019907,"INSTALL THREE PHASE JUNCTION CABINET AND SLEEVE (JC3-2C)",5,"EA",null,0]
[null,9019908,"INSTALL SECONDARY PEDESTAL (SP-2C)",21,"EA",null,0]
[null,9019910,"FURNISH/INSTALL PRIMARY RISER START (PR-4CP)",1,"EA",null,0]
[null,"SUBTOTAL ELECTRIC:",null,null,null,null,{"$f":"SUM(G161:G169)","v":0}]
[null,"SANITARY SEWER RELOCATIONS"]
[null,6039921,"RAISE EXISTING 4' STANDARD MANHOLE (0-4.0')",1,"EA",null,{"$f":"D172*F172","v":0}]
[null,6039922,"RAISE EXISTING 4' STANDARD MANHOLE (4.1-8.0')",1,"EA",null,0]
[null,6039923,"REMOVE EXISTING MANHOLE",1,"EA",null,0]
[null,6039924,"MANHOLE PATCH REPAIR (PER MANHOLE)",1,"EA",null,0]
[null,6039925,"15\" SDR-21 PVC GRAVITY SEWER MAIN",378,"LF",null,0]
[null,6039926,"21\" STEEL CASING (15\" PVC SEWER MAIN)",310,"LF",null,0]
[null,6039927,"REINFORCED CONCRETE ENCASEMENT CRADLE OVER EXISITNG 8\" SEWER PIPE",73,"LF",null,0]
[null,"SUBTOTAL SANITARY SEWER RELOCATIONS:",null,null,null,null,{"$f":"SUM(G172:G178)","v":0}]
[null,"TRAFFIC SIGNALS"]
[null,"COS-14.2.12.2","CONCRETE FOR BASES",13.08,"CUYD",null,{"$f":"D181*F181","v":0}]
[null,"COS-14.2.4.6.1.2","PULL BOX, PREFORMED (TYPE II)",2,"EA",null,0]
[null,"COS-14.2.5.2.9.5.55.15","TYPE S SIGNAL POST WITH MAST ARM & LUMINAIRE (55')",3,"EA",null,0]
[null,"COS-14.3.4.3.1","TYPE A PEDESTRIAN SIGNAL POST ",2,"EA",null,0]
[null,"COS-14.2.8.5.1.3","SIGNAL HEAD (3-SECTION)    (INSTALLATION ONLY)",12,"EA",null,0]
[null,"COS-14.2.8.5.2","16\" COUNTDOWN PEDESTRIAN SIGNAL HEAD    (INSTALLATION ONLY)",6,"EA",null,0]
[null,"COS-14.2.9.3.120","LUMINAIRE",3,"EA",null,0]
[null,"COS-14.2.10.4.1","RADAR DETECTION SYSTEM    (INSTALLATION ONLY)",1,"EA",null,0]
[null,"COS-14.2.11.10.1.332D","SIGNAL CONTROLLER CABINET, 332D    (INSTALLATION ONLY)",1,"EA",null,0]
[null,9029902,"BATTERY BACKUP",1,"EA",null,0]
[null,"COS-14.2.11.10.2","TYPE 2070 CONTROLLER    (INSTALLATION ONLY)",1,"EA",null,0]
[null,"COS-14.2.3.12.3.2","CONDUIT IN TRENCH (2\")",15,"LF",null,0]
[null,"COS-14.2.3.12.3.3","CONDUIT IN TRENCH (3\")",49,"LF",null,0]
[null,"COS-14.2.3.12.3.4","CONDUIT IN TRENCH (4\")",36,"LF",null,0]
[null,"COS-14.2.3.12.4.4","HDPE CONDUIT, BORED (4\")",297,"LF",null,0]
[null,"COS-14.2.2.14.7.1.8","LUMINAIRE CABLE, 1C#8",2200,"LF",null,0]
[null,"COS-14.2.2.14.7.1.10","LUMINAIRE CABLE, 1C#10",485,"LF",null,0]
[null," COS-14.2.2.14.1.1.6","1C #6 POWER CABLE",80,"LF",null,0]
[null,"COS-14.2.2.14.3","2C #14 CABLE FOR PUSHBUTTONS",1685,"LF",null,0]
[null,"COS-14.2.2.14.2.5.14","SIGNAL CABLE (5C #14)",840,"LF",null,0]
[null,"COS-14.2.2.14.2.7.14","SIGNAL CABLE (7C #14)",420,"LF",null,0]
[null,"COS-14.2.2.14.2.16.14","SIGNAL CABLE (16C #14)",715,"LF",null,0]
[null,"COS-14.2.2.14.9","1C #10 GROUND CABLE",1470,"LF",null,0]
[null,"COS-14.3.7.2","SIGNAL MOUNTED SIGNS    (INSTALLATION ONLY)",1,"LS",null,0]
[null,"SUBTOTAL TRAFFIC SIGNALS:",null,null,null,null,{"$f":"SUM(G181:G204)","v":0}]
[]
[null,"BID FORM OPTIONAL PAVEMENT: KANSAS EXPRESSWAY EXTENSTION"]
[null,"Pay Item Number","Description","Quantity","Unit","Unit Price","Estimated Cost"]
[null,"ASPHALT PAVEMENT OPTION"]
[null,3049905,"TYPE 5 AGGREGATE FOR BASE (8 IN. THICK)",44616,"SQYD",null,{"$f":"D210*F210","v":0}]
[null,4019905,"ASHPALT PAVEMENT OPTION",37635.800000000003,"SQYD",null,0]
[null,"SUBTOTAL ASPHALT PAVEMENT OPTION:",null,null,null,null,{"$f":"SUM(G210:G211)","v":0}]
[null,"CONCRETE PAVEMENT OPTION"]
[null,3040504,"TYPE 5 AGGREGATE FOR BASE (4 IN. THICK)",44616,"SQYD",null,{"$f":"D214*F214","v":0}]
[null,4019905,"CONCRETE PAVEMENT OPTION",37635.800000000003,"SQYD",null,0]
[null,"SUBTOTAL CONCRETE PAVEMENT OPTION:",null,null,null,null,{"$f":"SUM(G214:G215)","v":0}]
[]
[null,"SUBTOTAL PAGE 1:",null,null,null,null,{"$f":"G79","v":0}]
[null,"SUBTOTAL PAGE 2:",null,null,null,null,{"$f":"G155","v":0}]
[null,"SUBTOTAL PAGE 3:",null,null,null,null,{"$f":"SUM(G170+G179+G205)","v":0}]
[null,"SUBTOTAL ASPHALT OR CONCTRETE PAVEMENT OPTION:",null,null,null,null,{"$f":"IF(G212>0,G212,G216)","v":0}]
[null,"TOTAL CONSTRUCTION:",null,null,null,null,{"$f":"SUM(G218:G221)","v":0}]